lending/lending_fUSD_20250424
["ID","MTS","AMOUNT","RATE_DAILY","PERIOD"]
[358834357,1745487371551,-2400.0,0.00046014,30]
[358834358,1745487371580,-2400.0,0.00046019,30]
[358834359,1745487371610,-8196.89,0.00046027,120]
[358834360,1745487371640,-600.0,0.00046028,120]
[358834361,1745487371668,-732.90635204,0.00046029,30]
[358834362,1745487371697,-150.0,0.00046031,30]
[358834363,1745487371725,-150.0,0.00046039,30]
[358834364,1745487371752,-276.74995372,0.00046063,30]
[358834365,1745487371780,-150.0,0.00046078,120]
[358834366,1745487371808,-150.0,0.00046082,30]
[358834367,1745487371836,-283.58445,0.00046088,30]
[358834368,1745487371863,-8100.0,0.00046094,30]
[358834369,1745487371892,-150.0,0.00046096,30]
[358834370,1745487371920,-9989.9,0.000461,30]
[358834371,1745487371949,-7975.04,0.000461,120]
[358834372,1745487371979,-398.76,0.000461,120]
[358834373,1745487372008,-150.0,0.00046102,30]
[358834374,1745487372038,-150.0,0.00046103,30]
[358834375,1745487372068,-150.0,0.00046111,30]
[358834376,1745487372100,-276.74995372,0.0004612,30]
[358834377,1745487372128,-2400.0,0.00046125,30]
[358834378,1745487372161,-1300.0,0.0004614,30]
[358834379,1745487372192,-500.0,0.00046142,30]
[358834380,1745487372221,-150.0,0.00046143,30]
[358834381,1745487372249,-500.0,0.00046167,30]
[358834382,1745487372277,-150.0,0.00046168,30]
[358834383,1745487372305,-276.74995372,0.00046176,30]
[358834384,1745487372331,-150.0,0.00046176,30]
[358834385,1745487372358,-150.0,0.00046176,30]
[358834386,1745487372386,-150.0,0.00046183,30]
[358834387,1745487372414,-8100.0,0.00046188,30]
[358834388,1745487372442,-887.64058452,0.00046198,30]
[358834389,1745487372479,-449.69,0.000462,39]
[358834390,1745487372514,-449.69,0.000462,39]
[358834391,1745487372549,-449.69,0.000462,39]
[358834392,1745487372583,-449.69,0.000462,39]
[358834393,1745487372617,-449.69,0.000462,39]
[358834394,1745487372651,-449.69,0.000462,39]
[358834395,1745487372686,-449.69,0.000462,39]
[358834396,1745487372722,-449.69,0.000462,39]
[358834397,1745487372757,-449.69,0.000462,39]
[358834398,1745487372792,-449.69,0.000462,39]
[358834399,1745487372826,-449.69,0.000462,39]
[358834400,1745487372860,-449.69,0.000462,39]
[358834401,1745487372895,-449.69,0.000462,39]
[358834402,1745487372929,-449.69,0.000462,39]
[358834403,1745487372965,-449.69,0.000462,39]
[358834404,1745487373000,-449.69,0.000462,39]
[358834405,1745487373036,-449.69,0.000462,39]
[358834406,1745487373072,-449.69,0.000462,39]
[358834407,1745487373107,-449.69,0.000462,39]
[358834408,1745487373143,-449.69,0.000462,39]
[358834409,1745487373178,-449.69,0.000462,39]
[358834410,1745487373213,-449.69,0.000462,39]
[358834411,1745487373248,-449.69,0.000462,39]
[358834412,1745487373284,-449.69,0.000462,39]
[358834413,1745487373313,-150.0,0.00046202,120]
[358834414,1745487373342,-500.0,0.00046208,30]
[358834415,1745487373583,-150.0,0.00046218,30]
[358834416,1745487373613,-276.74995372,0.00046232,30]
[358834417,1745487373643,-150.0,0.00046243,30]
[358834418,1745487373672,-150.0,0.00046249,30]
[358834419,1745487373700,-150.0,0.00046254,30]
[358834420,1745487373730,-150.0,0.00046254,30]
[358834421,1745487373759,-1300.0,0.00046259,30]
[358834422,1745487373788,-500.0,0.00046264,30]
[358834423,1745487373815,-8100.0,0.00046269,30]
[358834424,1745487373844,-903.04262674,0.0004628,30]
[358834425,1745487373873,-150.0,0.00046283,120]
[358834426,1745487373904,-927.66194875,0.00046284,30]
[358834427,1745487373932,-283.58445,0.00046288,30]
[358834428,1745487373961,-276.74995372,0.00046289,30]
[358834429,1745487373989,-217.91095958,0.000463,30]
[358834430,1745487374019,-61602.19898335,0.000463,30]
[358834431,1745487374048,-705.44781874,0.000463,33]
[358834432,1745487374078,-300.0,0.000463,30]
[358834433,1745487374107,-6055.14,0.000463,120]
[358834434,1745487374136,-2388.31,0.000463,120]
[358834435,1745487374174,-2400.0,0.00046313,30]
[358834436,1745487374206,-1011.676894,0.00046318,120]
[358834437,1745487374239,-150.0,0.00046321,30]
[358834438,1745487374270,-150.0,0.00046323,30]
[358834439,1745487374300,-2400.0,0.00046325,30]
[358834440,1745487374330,-150.0,0.00046326,30]
[358834441,1745487374360,-150.0,0.00046335,30]
[358834442,1745487374391,-150.0,0.0004634,30]
[358834443,1745487374420,-276.74995372,0.00046345,30]
[358834444,1745487374450,-150.0,0.0004639,30]
[358834445,1745487374480,-150.0,0.00046392,120]
[358834446,1745487374509,-150.0,0.00046394,30]
[358834447,1745487374538,-150.0,0.00046397,30]
[358834448,1745487374568,-276.74995372,0.00046402,30]
[358834449,1745487374597,-150.0,0.00046426,30]
[358834450,1745487374625,-507.86377957,0.00046439,30]
[358834451,1745487374655,-150.0,0.00046451,30]
[358834452,1745487374686,-150.0,0.00046455,120]
[358834453,1745487374716,-276.74995372,0.00046458,30]
[358834454,1745487374745,-1333.0,0.00046466,120]
[358834455,1745487374780,-150.0,0.00046466,30]
[358834456,1745487374808,-150.0,0.00046469,30]
[358834457,1745487374839,-500.0,0.00046487,30]
[358834458,1745487374868,-283.58445,0.00046488,30]
[358834459,1745487374900,-10000.0,0.000465,120]
[358834460,1745487374930,-150.0,0.00046504,30]
[358834461,1745487374962,-700.0,0.00046508,30]
[358834462,1745487374994,-150.0,0.00046512,30]
[358834463,1745487375026,-276.74995372,0.00046515,30]
[358834464,1745487375058,-150.0,0.00046537,30]
[358834465,1745487375091,-150.0,0.00046539,30]
[358834466,1745487375123,-150.0,0.00046541,30]
[358834467,1745487375155,-4337.99327695,0.00046566,30]
[358834468,1745487375185,-150.0,0.00046568,30]
[358834469,1745487375215,-310712.6182545,0.0004657,120]
[358834470,1745487375246,-276.74995372,0.00046571,30]
[358834471,1745487375276,-326.5,0.00046575,120]
[358834472,1745487375306,-600.0,0.00046576,120]
[358834473,1745487375335,-485660.26028789,0.0004658,120]
[358834474,1745487375376,-500.0,0.00046581,30]
[358834475,1745487375413,-2244.44351602,0.00046584,30]
[358834476,1745487375444,-150.0,0.00046589,120]
[358834477,1745487375474,-1071.0,0.00046595,30]
[358834478,1745487375507,-150.0,0.00046595,120]
[358834479,1745487375538,-150.0,0.00046598,30]
[358834480,1745487375569,-1000.0,0.00046599,120]
[358834481,1745487375600,-207.2,0.000466,41]
[358834482,1745487375630,-6055.14,0.000466,120]
[358834483,1745487375659,-2388.31,0.000466,120]
[358834484,1745487375688,-150.0,0.00046611,30]
[358834485,1745487375719,-150.0,0.00046612,30]
[358834486,1745487375748,-720.56357812,0.00046615,120]
[358834487,1745487375778,-276.74995372,0.00046628,30]
[358834488,1745487375808,-292.73002804,0.00046684,30]
[358834489,1745487375837,-263.5738304,0.00046684,30]
[358834490,1745487375868,-276.74995372,0.00046684,30]
[358834491,1745487375898,-182.29071451,0.00046684,30]
[358834492,1745487375930,-152.25208947,0.00046684,30]
[358834493,1745487375961,-253.63168744,0.00046684,30]
[358834494,1745487375992,-229.72856791,0.00046684,30]
[358834495,1745487376023,-171.29618654,0.00046684,30]
[358834496,1745487376055,-150.95507873,0.00046684,30]
[358834497,1745487376089,-192.09447433,0.00046684,30]
[358834498,1745487376120,-163.08629211,0.00046684,30]
[358834499,1745487376151,-283.58445,0.00046688,30]
[358834500,1745487376182,-151.0,0.00046691,120]
[358834501,1745487376213,-14400.47197814,0.00046695,30]
[358834502,1745487376242,-89592.84205483,0.00046699,120]
[358834503,1745487376271,-980.66350177,0.00046699,120]
[358834504,1745487376300,-5000.0,0.000467,30]
[358834505,1745487376328,-200.0,0.000467,81]
[358834506,1745487376357,-151.0,0.000467,30]
[358834507,1745487376385,-151.0,0.000467,92]
[358834508,1745487376412,-599.60298507,0.000467,30]
[358834509,1745487376442,-151.0,0.000467,105]
[358834510,1745487376472,-151.0,0.000467,120]
[358834511,1745487376502,-621.78829552,0.000467,92]
[358834512,1745487376532,-644.79446245,0.000467,105]
[358834513,1745487376562,-500.0,0.00046714,30]
[358834514,1745487377841,-500.0,0.00046723,30]
[358834515,1745487377872,-151.0,0.00046733,30]
[358834516,1745487378115,-151.0,0.00046733,30]
[358834517,1745487378147,-151.0,0.00046733,90]
[358834518,1745487378180,-537.6845,0.00046733,30]
[358834519,1745487378212,-151.0,0.00046733,90]
[358834520,1745487378252,-151.0,0.00046733,120]
[358834521,1745487378285,-557.5788265,0.00046733,90]
[358834522,1745487378315,-578.20924308,0.00046733,120]
[358834523,1745487378346,-151.0,0.00046735,120]
[358834524,1745487378375,-151.0,0.00046735,120]
[358834525,1745487378405,-518.5,0.00046735,120]
[358834526,1745487378433,-151.0,0.00046736,30]
[358834527,1745487378462,-151.0,0.00046736,30]
[358834528,1745487378494,-500.0,0.00046736,30]
[358834529,1745487378526,-200.0,0.00046736,30]
[358834530,1745487378558,-25000.0,0.00046737,60]
[358834531,1745487378588,-178.56315628,0.00046737,60]
[358834532,1745487378618,-7230.97499094,0.00046737,60]
[358834533,1745487378648,-5828.77296566,0.00046737,60]
[358834534,1745487378679,-423.92,0.00046746,30]
[358834535,1745487378710,-215.14,0.00046749,30]
[358834536,1745487378741,-2575928.41846741,0.00046749,62]
[358834537,1745487397002,-439.0,0.00040325,60]
[358834538,1745487397063,-28966.09,0.00044,60]
[358834539,1745487397097,-151.0,0.00044341,30]
[358834540,1745487397128,-151.0,0.00044341,30]
[358834541,1745487397162,-5023.09585,0.00044879,30]
[358834542,1745487397213,-4190.93,0.00046684,30]
[358834543,1745487398528,-5961078.88415,0.00046749,62]
[358834544,1745487405144,-6000000.0,0.00046749,62]
[358834546,1745487426499,-27638.46982278,0.00046,120]
[358834547,1745487426541,-300.36109567,0.00046515,30]
[358834548,1745487426581,-151.0,0.000466,41]
[358834549,1745487426617,-151.0,0.000466,41]
[358834550,1745487426655,-194.3783369,0.000466,41]
[358834551,1745487426693,-200.0,0.000466,41]
[358834552,1745487428568,-962992.69738259,0.00046749,62]
[358834553,1745487428597,-386.09667968,0.00046749,30]
[358834554,1745487428626,-68547.3851588,0.00046749,30]
[358834555,1745487428654,-165.27,0.0004675,120]
[358834556,1745487428684,-68547.3851588,0.00046758,30]
[358834557,1745487428713,-68547.3851588,0.00046758,30]
[358834558,1745487428742,-68547.3851588,0.00046758,30]
[358834559,1745487428770,-386.09667968,0.00046758,30]
[358834560,1745487428796,-25000.0,0.00046769,60]
[358834561,1745487428824,-25000.0,0.00046769,60]
[358834562,1745487428850,-25000.0,0.00046769,60]
[358834563,1745487428878,-150.0,0.00046788,120]
[358834564,1745487428906,-150.0,0.00046802,120]
[358834565,1745487428934,-150.0,0.00046826,120]
[358834566,1745487428962,-150.0,0.00046848,120]
[358834567,1745487428992,-1000.0,0.00046849,120]
[358834568,1745487429020,-1000.0,0.00046849,120]
[358834569,1745487429048,-1000.0,0.00046849,120]
[358834570,1745487429079,-1000.0,0.00046849,120]
[358834571,1745487429110,-1000.0,0.00046849,120]
[358834572,1745487429139,-1000.0,0.00046849,120]
[358834573,1745487429169,-1000.0,0.00046849,120]
[358834574,1745487429198,-1000.0,0.00046849,120]
[358834575,1745487429227,-1000.0,0.00046849,120]
[358834576,1745487429257,-1000.0,0.00046849,120]
[358834577,1745487429288,-1000.0,0.00046849,120]
[358834578,1745487429317,-1000.0,0.00046849,120]
[358834579,1745487429346,-1000.0,0.00046849,120]
[358834580,1745487429374,-1000.0,0.00046849,120]
[358834581,1745487429403,-1000.0,0.00046849,120]
[358834582,1745487429433,-1000.0,0.00046849,120]
[358834583,1745487429463,-1000.0,0.00046849,120]
[358834584,1745487429492,-1000.0,0.00046849,120]
[358834585,1745487429520,-1000.0,0.00046849,120]
[358834586,1745487429548,-1000.0,0.00046849,120]
[358834587,1745487429577,-1000.0,0.00046849,120]
[358834588,1745487429605,-1000.0,0.00046849,120]
[358834589,1745487429633,-1000.0,0.00046849,120]
[358834590,1745487429661,-1000.0,0.00046849,120]
[358834591,1745487429689,-1000.0,0.00046849,120]
[358834592,1745487429719,-1000.0,0.00046849,120]
[358834593,1745487429748,-1000.0,0.00046849,120]
[358834594,1745487429778,-1000.0,0.00046849,120]
[358834595,1745487429807,-1000.0,0.00046849,120]
[358834596,1745487429834,-1000.0,0.00046849,120]
[358834597,1745487429864,-1000.0,0.00046849,120]
[358834598,1745487429892,-1000.0,0.00046849,120]
[358834599,1745487429922,-1000.0,0.00046849,120]
[358834600,1745487429951,-1000.0,0.00046849,120]
[358834601,1745487429979,-1000.0,0.00046849,120]
[358834602,1745487430009,-1000.0,0.00046849,120]
[358834603,1745487430038,-1000.0,0.00046849,120]
[358834604,1745487430067,-1000.0,0.00046849,120]
[358834605,1745487430100,-1000.0,0.00046849,120]
[358834606,1745487430129,-1000.0,0.00046849,120]
[358834607,1745487430158,-1199.793518,0.00046849,120]
[358834608,1745487430187,-283.58445,0.00046888,30]
[358834609,1745487430215,-150.0,0.00046911,120]
[358834610,1745487430247,-50000.0,0.00047,37]
[358834611,1745487430277,-200.0,0.00047,30]
[358834612,1745487430306,-1000.0,0.00047,120]
[358834613,1745487430335,-2180.0,0.00047,120]
[358834614,1745487430363,-900.0,0.00047,48]
[358834615,1745487430392,-10000.0,0.00047,120]
[358834616,1745487430422,-200.0,0.00047,82]
[358834617,1745487430453,-28966.09,0.00047,60]
[358834618,1745487430484,-150.0,0.00047016,120]
[358834619,1745487430515,-245.12640901,0.00047124,120]
[358834620,1745487430544,-150.0,0.00047126,120]
[358834621,1745487430573,-150.0,0.00047218,120]
[358834622,1745487430601,-150.0,0.00047288,120]
[358834623,1745487430630,-150.0,0.00047347,120]
[358834624,1745487430658,-150.0,0.00047355,120]
[358834625,1745487430692,-449.69,0.000474,42]
[358834626,1745487430724,-449.69,0.000474,42]
[358834627,1745487430757,-449.69,0.000474,42]
[358834628,1745487430790,-449.69,0.000474,42]
[358834629,1745487430824,-449.69,0.000474,42]
[358834630,1745487430857,-449.69,0.000474,42]
[358834631,1745487430893,-449.69,0.000474,42]
[358834632,1745487430930,-449.69,0.000474,42]
[358834633,1745487431200,-449.69,0.000474,42]
[358834634,1745487431236,-449.69,0.000474,42]
[358834635,1745487431272,-449.69,0.000474,42]
[358834636,1745487431309,-449.69,0.000474,42]
[358834637,1745487431344,-449.69,0.000474,42]
[358834638,1745487431380,-449.69,0.000474,42]
[358834639,1745487431415,-449.69,0.000474,42]
[358834640,1745487431450,-449.69,0.000474,42]
[358834641,1745487431483,-449.69,0.000474,42]
[358834642,1745487431516,-449.69,0.000474,42]
[358834643,1745487431549,-449.69,0.000474,42]
[358834644,1745487431584,-449.69,0.000474,42]
[358834645,1745487431618,-449.69,0.000474,42]
[358834646,1745487431651,-449.69,0.000474,42]
[358834647,1745487431684,-449.69,0.000474,42]
[358834648,1745487431718,-449.69,0.000474,42]
[358834649,1745487431746,-150.0,0.00047417,120]
[358834650,1745487431775,-10000.0,0.000475,120]
[358834651,1745487431804,-150.0,0.00047507,120]
[358834652,1745487431833,-150.0,0.00047623,120]
[358834653,1745487431861,-150.0,0.00047642,120]
[358834654,1745487431888,-150.0,0.00047683,120]
[358834655,1745487431916,-200.0,0.000477,84]
[358834656,1745487431944,-150.0,0.00047703,120]
[358834657,1745487431971,-4099.68,0.000478,30]
[358834658,1745487432001,-150.0,0.00047836,120]
[358834659,1745487432029,-150.0,0.00047868,120]
[358834660,1745487432057,-463.85222864,0.0004788,100]
[358834661,1745487432090,-1150.78,0.00047887,30]
[358834662,1745487432120,-2301.86,0.00047887,30]
[358834663,1745487432168,-2327.53,0.00047887,30]
[358834664,1745487432211,-2301.56,0.00047887,30]
[358834665,1745487432239,-2301.56,0.00047887,30]
[358834666,1745487432268,-150.0,0.0004793,120]
[358834667,1745487432296,-326.5,0.00047945,120]
[358834668,1745487432324,-150.0,0.00047991,120]
[358834669,1745487432354,-50000.0,0.00048,38]
[358834670,1745487432381,-1000.0,0.00048,120]
[358834671,1745487432409,-200.0,0.00048,30]
[358834672,1745487432438,-1000.0,0.00048,120]
[358834673,1745487432469,-190.0,0.00048,120]
[358834674,1745487432498,-900.0,0.00048,49]
[358834675,1745487432526,-10000.0,0.00048,120]
[358834676,1745487432554,-633.0,0.00048,120]
[358834677,1745487432581,-200.0,0.00048,85]
[358834678,1745487432607,-6374.38521955,0.00048,120]
[358834679,1745487432634,-1684.57239108,0.00048,120]
[358834680,1745487432660,-353955.6022,0.00048,120]
[358834681,1745487432688,-150.0,0.00048026,120]
[358834682,1745487432716,-150.0,0.00048114,120]
[358834683,1745487432742,-150.0,0.00048284,120]
[358834684,1745487432770,-150.0,0.00048384,120]
[358834685,1745487432798,-150.0,0.00048498,120]
[358834686,1745487432825,-10000.0,0.000485,120]
[358834687,1745487432853,-150.0,0.00048545,120]
[358834688,1745487432880,-1240.66,0.000486,120]
[358834689,1745487432912,-449.69,0.000486,45]
[358834690,1745487432945,-449.69,0.000486,45]
[358834691,1745487432979,-449.69,0.000486,45]
[358834692,1745487433013,-449.69,0.000486,45]
[358834693,1745487433051,-449.69,0.000486,45]
[358834694,1745487433089,-449.69,0.000486,45]
[358834695,1745487433124,-449.69,0.000486,45]
[358834696,1745487433161,-449.69,0.000486,45]
[358834697,1745487433197,-449.69,0.000486,45]
[358834698,1745487433230,-449.69,0.000486,45]
[358834699,1745487433265,-449.69,0.000486,45]
[358834700,1745487433300,-449.69,0.000486,45]
[358834701,1745487433334,-449.69,0.000486,45]
[358834702,1745487433367,-449.69,0.000486,45]
[358834703,1745487433400,-449.69,0.000486,45]
[358834704,1745487433434,-449.69,0.000486,45]
[358834705,1745487433466,-449.69,0.000486,45]
[358834706,1745487433497,-449.69,0.000486,45]
[358834707,1745487433530,-449.69,0.000486,45]
[358834708,1745487433563,-449.69,0.000486,45]
[358834709,1745487433597,-449.69,0.000486,45]
[358834710,1745487433630,-449.69,0.000486,45]
[358834711,1745487433664,-449.69,0.000486,45]
[358834712,1745487433699,-449.69,0.000486,45]
[358834713,1745487433728,-200.0,0.000487,87]
[358834714,1745487433757,-1150.78,0.00048709,30]
[358834715,1745487433787,-1600.0,0.00048723,120]
[358834716,1745487433816,-150.0,0.00048795,120]
[358834717,1745487433845,-150.0,0.00048838,120]
[358834718,1745487433873,-5574.0,0.0004888,45]
[358834719,1745487433902,-150.0,0.00048893,120]
[358834720,1745487433930,-2500.0,0.000489,120]
[358834721,1745487433959,-21602.49823889,0.000489,60]
[358834722,1745487433988,-3000.0,0.0004896,45]
[358834723,1745487434019,-50000.0,0.00049,39]
[358834724,1745487434048,-390.66258475,0.00049,30]
[358834725,1745487434076,-742.38552444,0.00049,120]
[358834726,1745487434109,-155.15225524,0.00049,120]
[358834727,1745487434139,-200.0,0.00049,30]
[358834728,1745487434169,-1000.0,0.00049,120]
[358834729,1745487434198,-2712.93,0.00049,120]
[358834730,1745487434226,-2034.51,0.00049,120]
[358834731,1745487434255,-1000.0,0.00049,30]
[358834732,1745487434284,-900.0,0.00049,50]
[358834733,1745487434312,-10000.0,0.00049,120]
[358834734,1745487434342,-511.0,0.00049,120]
[358834735,1745487434370,-200.0,0.00049,88]
[358834736,1745487434399,-150.0,0.00049005,120]
[358834737,1745487434434,-150.0,0.00049026,120]
[358834738,1745487434722,-150.0,0.00049077,120]
[358834739,1745487434752,-300.0,0.00049101,30]
[358834740,1745487434782,-500.0,0.00049315,120]
[358834741,1745487434816,-326.5,0.00049315,120]
[358834742,1745487434847,-500.0,0.00049315,30]
[358834743,1745487434877,-500.0,0.00049315,30]
[358834744,1745487434909,-500.0,0.00049315,30]
[358834745,1745487434939,-500.0,0.00049315,30]
[358834746,1745487434968,-500.0,0.00049315,30]
[358834747,1745487434997,-500.0,0.00049315,30]
[358834748,1745487435027,-538.47112659,0.00049315,30]
[358834749,1745487435058,-155.0,0.00049315,30]
[358834750,1745487435090,-155.0,0.00049315,62]
[358834751,1745487435121,-150.0,0.00049315,120]
[358834752,1745487435151,-100600.0,0.000494,120]
[358834753,1745487435183,-6055.14,0.000494,120]
[358834754,1745487435218,-2388.31,0.000494,120]
[358834755,1745487435247,-7975.04,0.000494,120]
[358834756,1745487435276,-398.76,0.000494,120]
[358834757,1745487435306,-500.0,0.000494,120]
[358834758,1745487435335,-350.0,0.000494,120]
[358834759,1745487435364,-2836.82671,0.0004944,45]
[358834760,1745487435393,-439.71157466,0.000495,120]
[358834761,1745487435423,-10000.0,0.000495,120]
[358834762,1745487435452,-1608.73258624,0.000495,39]
[358834763,1745487435482,-466.0,0.00049589,60]
[358834764,1745487435512,-466.0,0.00049589,60]
[358834765,1745487435542,-466.0,0.00049589,60]
[358834766,1745487435573,-466.0,0.00049589,60]
[358834767,1745487435604,-466.0,0.00049589,60]
[358834768,1745487435634,-466.0,0.00049589,60]
[358834769,1745487435664,-466.0,0.00049589,60]
[358834770,1745487435694,-466.0,0.00049589,60]
[358834771,1745487435725,-466.0,0.00049589,60]
[358834772,1745487435755,-466.0,0.00049589,60]
[358834773,1745487435801,-466.0,0.00049589,60]
[358834774,1745487435836,-466.0,0.00049589,60]
[358834775,1745487435868,-466.0,0.00049589,60]
[358834776,1745487435899,-267.0,0.00049589,60]
[358834777,1745487435929,-267.0,0.00049589,60]
[358834778,1745487435960,-267.0,0.00049589,60]
[358834779,1745487435991,-267.0,0.00049589,60]
[358834780,1745487436023,-267.0,0.00049589,60]
[358834781,1745487436057,-267.0,0.00049589,60]
[358834782,1745487436092,-267.0,0.00049589,60]
[358834783,1745487436125,-267.0,0.00049589,60]
[358834784,1745487436158,-267.0,0.00049589,60]
[358834785,1745487436193,-267.0,0.00049589,60]
[358834786,1745487436225,-267.0,0.00049589,60]
[358834787,1745487436257,-267.0,0.00049589,60]
[358834788,1745487436290,-267.0,0.00049589,60]
[358834789,1745487436322,-466.0,0.00049589,60]
[358834790,1745487436355,-466.0,0.00049589,60]
[358834791,1745487436387,-466.0,0.00049589,60]
[358834792,1745487436419,-466.0,0.00049589,60]
[358834793,1745487436451,-466.0,0.00049589,60]
[358834794,1745487436483,-466.0,0.00049589,60]
[358834795,1745487436514,-466.0,0.00049589,60]
[358834796,1745487436546,-466.0,0.00049589,60]
[358834797,1745487436575,-466.0,0.00049589,60]
[358834798,1745487436607,-466.0,0.00049589,60]
[358834799,1745487436638,-466.0,0.00049589,60]
[358834800,1745487436669,-466.0,0.00049589,60]
[358834801,1745487436699,-466.0,0.00049589,60]
[358834802,1745487436730,-466.0,0.00049589,60]
[358834803,1745487436762,-267.0,0.00049589,60]
[358834804,1745487436793,-267.0,0.00049589,60]
[358834805,1745487436823,-267.0,0.00049589,60]
[358834806,1745487436855,-267.0,0.00049589,60]
[358834807,1745487436884,-267.0,0.00049589,60]
[358834808,1745487436916,-267.0,0.00049589,60]
[358834809,1745487436947,-267.0,0.00049589,60]
[358834810,1745487436978,-267.0,0.00049589,60]
[358834811,1745487437010,-267.0,0.00049589,60]
[358834812,1745487437040,-267.0,0.00049589,60]
[358834813,1745487437071,-267.0,0.00049589,60]
[358834814,1745487437103,-267.0,0.00049589,60]
[358834815,1745487437134,-267.0,0.00049589,60]
[358834816,1745487437166,-267.0,0.00049589,60]
[358834817,1745487437198,-466.0,0.00049589,60]
[358834818,1745487437230,-466.0,0.00049589,60]
[358834819,1745487437262,-466.0,0.00049589,60]
[358834820,1745487437293,-466.0,0.00049589,60]
[358834821,1745487437323,-466.0,0.00049589,60]
[358834822,1745487437353,-466.0,0.00049589,60]
[358834823,1745487437384,-466.0,0.00049589,60]
[358834824,1745487437415,-466.0,0.00049589,60]
[358834825,1745487437447,-466.0,0.00049589,60]
[358834826,1745487437476,-466.0,0.00049589,60]
[358834827,1745487437507,-466.0,0.00049589,60]
[358834828,1745487437537,-466.0,0.00049589,60]
[358834829,1745487437566,-466.0,0.00049589,60]
[358834830,1745487437596,-466.0,0.00049589,60]
[358834831,1745487437625,-267.0,0.00049589,60]
[358834832,1745487437654,-267.0,0.00049589,60]
[358834833,1745487437684,-267.0,0.00049589,60]
[358834834,1745487437716,-267.0,0.00049589,60]
[358834835,1745487437745,-267.0,0.00049589,60]
[358834836,1745487437774,-267.0,0.00049589,60]
[358834837,1745487437802,-267.0,0.00049589,60]
[358834838,1745487437835,-267.0,0.00049589,60]
[358834839,1745487437865,-267.0,0.00049589,60]
[358834840,1745487437894,-267.0,0.00049589,60]
[358834841,1745487437923,-267.0,0.00049589,60]
[358834842,1745487438179,-267.0,0.00049589,60]
[358834843,1745487438237,-267.0,0.00049589,60]
[358834844,1745487438269,-267.0,0.00049589,60]
[358834845,1745487438308,-466.0,0.00049589,60]
[358834846,1745487438338,-466.0,0.00049589,60]
[358834847,1745487438371,-466.0,0.00049589,60]
[358834848,1745487438404,-466.0,0.00049589,60]
[358834849,1745487438436,-466.0,0.00049589,60]
[358834850,1745487438468,-466.0,0.00049589,60]
[358834851,1745487438501,-466.0,0.00049589,60]
[358834852,1745487438535,-466.0,0.00049589,60]
[358834853,1745487438568,-466.0,0.00049589,60]
[358834854,1745487438600,-466.0,0.00049589,60]
[358834855,1745487438632,-466.0,0.00049589,60]
[358834856,1745487438663,-466.0,0.00049589,60]
[358834857,1745487438695,-466.0,0.00049589,60]